Cogmind - Beta 14 @@@ ROGUE MODE // 2024.08.23 @ 20:46:01 Player: cabin Result: Destroyed by H-55 Commando with Gauss Rifle Performance ------------- Evolutions (2) 1000 Regions Visited (4) 800 Robots Destroyed (36) 180 Value Destroyed (1071) 1071 Prototype IDs (0) 0 Alien Tech Used (0) 0 Bonus (0) 0 TOTAL SCORE: 3051 Bonus ------- None Cogmind --------- Core Integrity 0/550 Matter 74/300 Energy 100/100 System Corruption 0% Temperature Cool (18) Movement Core (50) Location -8/Materials Parts ------- > --- POWER (3) -------- (None) > --- PROPULSION (2) --- (None) > --- UTILITY (2) ------ Visual Processing Unit Utility Shielding > --- WEAPON (4) ------- (None) > --- INVENTORY (5) ---- Ion Engine Mini Grenade Launcher Peak State ------------ > --- POWER ------------ Improved Deuterium Engine Improved Deuterium Engine > --- PROPULSION ------- Titanium Leg Titanium Leg > --- UTILITY ---------- Visual Processing Unit Utility Shielding > --- WEAPON ----------- Spread Laser Spread Laser Mini Grenade Launcher Mini Grenade Launcher > --- INVENTORY -------- Ion Engine Aluminum Leg Mini Grenade Launcher [Rating: 25] Favorites ----------- Power Improved Ion Engine Engine Improved Ion Engine Propulsion Titanium Leg Treads Light Treads Leg Titanium Leg Wheel Armored Wheel Flight Unit Cesium-ion Thruster Utility Utility Shielding Device Improved Heat Sink Processor Visual Processing Unit Protection Utility Shielding Weapon Beam Cannon Energy Gun Spread Laser Energy Cannon Beam Cannon Ballistic Gun Assault Rifle Launcher Mini Grenade Launcher Special Melee Weapon Datajack Build | -11 -10 -10 -9 -8 ------- Run | Yrd Mat Min Mat Mat Slots Evolved 4 | . . . 2 2 Power 2 | . . . . 2 Propulsion . | . . . . . Utility . | . . . . . Weapon 2 | . . . 2 . Parts Attached 57 | 5 6 10 31 5 Power 11 | 1 1 2 5 2 Engine 11 | 1 1 2 5 2 Core . | . . . . . Reactor . | . . . . . Propulsion 16 | 2 . 3 10 1 Treads 2 | . . 1 1 . Leg 9 | 2 . 1 5 1 Wheel 1 | . . . 1 . Hover . | . . . . . Flight 4 | . . 1 3 . Utility 6 | . 2 2 2 . Device 3 | . 2 . 1 . Storage . | . . . . . Processor 2 | . . 1 1 . Hackware . | . . . . . Protection 1 | . . 1 . . Artifact . | . . . . . Weapon 24 | 2 3 3 14 2 Energy Gun 11 | 1 1 1 6 2 Energy Cannon 4 | . 1 1 2 . Ballistic Gun 3 | 1 . . 2 . Ballistic Cannon . | . . . . . Launcher 5 | . 1 . 4 . Special Weapon . | . . . . . Impact Weapon . | . . . . . Slashing Weapon . | . . . . . Piercing Weapon . | . . . . . Special Melee Weapon 1 | . . 1 . . Unidentified Prototypes . | . . . . . Parts Lost 23 | . 1 . 11 11 Power 5 | . . . 3 2 Propulsion 5 | . . . 2 3 Utility 1 | . . . 1 . Weapon 12 | . 1 . 5 6 Highest Loss Streak 9 | . 1 . 4 9 To Critical Strikes . | . . . . . Average Slot Usage (%) 78 | . 88 79 74 78 Engine 10 | . 14 14 8 9 Treads 4 | . . 9 5 . Leg 12 | . 28 5 7 16 Flight 2 | . . 1 4 . Device 5 | . 17 4 2 . Processor 6 | . . 10 6 9 Protection 8 | . . 10 11 9 Energy Gun 7 | . 3 2 10 15 Energy Cannon 6 | . 3 12 7 . Ballistic Gun 4 | . 10 . 5 . Launcher 6 | . 10 . 3 17 Special Melee Weapon 2 | . . 9 1 . Peak Build Rating 25 | 5 9 9 22 25 Average Rating 10 | 3 7 6 11 20 On Entrance 7 | . 5 9 7 17 Naked Turns . | . . . . . Heaviest Build 29 | 9 13 12 16 29 Greatest Support 40 | 20 20 20 40 34 Greatest Overweight (x) 9 | 2 . 3 5 9 Average Overweight (x) . | . . . . . Largest Inventory Capacity 5 | 5 5 5 5 5 Average Capacity 5 | 5 5 5 5 5 Most Carried 5 | . 5 5 5 3 Average Carried 3 | . 2 4 3 2 Final Capacity 5 | 5 5 5 5 5 Final Carried 4 | . 4 4 3 2 Class Distribution -------------------- 60% | Mutant 28% | Tank 10% | Scavenger-Tank Dominant Class ---------------- Mutant | -10/Materials Mutant | -10/Mines Tank | -9/Materials Tank | -8/Materials Resources | -11 -10 -10 -9 -8 ----------- Run | Yrd Mat Min Mat Mat Matter Collected 771 | 250 97 140 284 . Remotely . | . . . . . Salvage Created 1084 | . 231 53 698 102 Parts 69 | . 13 6 41 9 Haulers Intercepted 1 | . 1 . . . Recyclers Shooed 2 | . 2 . . . Parts Field Recycled . | . . . . . Retrieved Matter . | . . . . . Parts Self-Destructed . | . . . . . Prevented . | . . . . . Kills | -11 -10 -10 -9 -8 ------- Run | Yrd Mat Min Mat Mat Combat Hostiles Destroyed 29 | . 7 3 16 3 Guns 15 | . . 2 13 . Cannons 4 | . . 1 3 . AOE 10 | . 7 . . 3 Classes Destroyed 9 | . 4 1 3 1 Worker 1 | . 1 . . . Builder 2 | . 1 . . 1 Hauler 1 | . 1 . . . Mechanic 1 | . . . 1 . Operator 1 | . . . . 1 Watcher 1 | . . . 1 . Swarmer 6 | . . 3 3 . Grunt 18 | . 7 . 8 3 Sentry 5 | . . . 5 . Best Kill Streak 5 | . 5 3 4 5 Combat Bots Only 4 | . 3 3 4 3 Max Kills in Single Turn 2 | . 2 1 1 2 Gunslinging . | . . . . . Exploded 2 | . 1 . . 2 Melee . | . . . . . Uniques/NPCs Destroyed . | . . . . . Combat | -11 -10 -10 -9 -8 -------- Run | Yrd Mat Min Mat Mat Hostile Shots Fired 280 | . 16 34 150 80 Missed 79 | . 6 13 42 18 Damage Taken 3128 | . 154 164 1444 1366 Core 941 | . . 54 328 559 Absorbed by Shields . | . . . . . Redirected to Shielding 7 | . . . 7 . Core Remaining (%) 65 | 100 . 78 18 . Volleys Fired 68 | . 12 7 45 4 Largest 4 | . 2 2 4 4 Hottest 225 | . 100 100 225 190 Shots Fired 134 | . 22 14 84 14 Gun 74 | . 6 7 56 5 Cannon 34 | . 7 7 20 . Launcher 26 | . 9 . 8 9 Special . | . . . . . Kinetic 36 | . 5 . 30 1 Thermal 42 | . 7 7 24 4 Explosive 26 | . 9 . 8 9 Electromagnetic 30 | . 1 7 22 . Robot Hit Streak 11 | . 4 4 11 9 Robot Miss Streak 4 | . 2 3 2 4 Penetration Max . | . . . . . Secondary Targets 1 | . . . 1 . Max Gunslinging Chain 1 | . . . 1 . Shots Hit Robots 84 | . 10 7 57 10 Core Hits 65 | . 19 3 30 13 Critical Kills . | . . . . . Critical Parts Destroyed . | . . . . . Critical Strikes . | . . . . . Melee Attacks 4 | . . . 4 . Impact . | . . . . . Slashing . | . . . . . Piercing . | . . . . . Sneak Attacks 3 | . . . 3 . Combat Hostiles . | . . . . . Follow-up Attacks . | . . . . . Damage Inflicted 2517 | . 818 113 948 638 Guns 641 | . 32 43 533 33 Cannons 346 | . 70 70 206 . Explosions 1487 | . 716 . 189 582 Melee . | . . . . . Ramming 43 | . . . 20 23 Kinetic 351 | . 20 . 319 12 Thermal 492 | . 185 70 216 21 Explosive 1372 | . 601 . 189 582 Electromagnetic 259 | . 12 43 204 . Impact . | . . . . . Slashing . | . . . . . Piercing . | . . . . . Highest Corruption . | . . . . . Average Corruption . | . . . . . Corruption Purged . | . . . . . Corruption Blocked . | . . . . . Overload Shots . | . . . . . Overflow Damage 61 | . 17 . . 44 Projectiles 8 | . 8 . . . Explosions 53 | . 9 . . 44 Melee . | . . . . . Knockbacks . | . . . . . Impact . | . . . . . Kinetic . | . . . . . Secondary . | . . . . . Self-Inflicted Damage 265 | . 30 . 27 208 Shots 13 | . 2 . 3 8 Rammed 9 | . . . 6 3 Targets Rammed 18 | . 1 . 7 10 Kicked 9 | . 1 . 1 7 Crushed . | . . . . . Highest Temperature 147 | . 24 . 147 96 Average Temperature 42 | . 9 . 48 34 Received Heat Transfer 1014 | . 87 . 576 351 Siege Activations . | . . . . . Robots Corrupted . | . . . . . Combat Hostiles . | . . . . . Parts Fried . | . . . . . Impact Corruptions . | . . . . . Robots Melted . | . . . . . Combat Hostiles . | . . . . . Parts Melted 2 | . . . 2 . Heat Transferred 953 | . 348 148 432 25 Parts Sabotaged . | . . . . . Parts Stolen . | . . . . . Parts Stripped . | . . . . . Power Chain Reactions 1 | . 1 . . . Alert | -11 -10 -10 -9 -8 ------- Run | Yrd Mat Min Mat Mat Peak Influence 307 | . 295 274 307 265 Initial 129 | . . 114 28 129 Average 190 | . 150 242 178 245 Maximum Alert Level 1 | . 1 1 1 1 Low Security (%) 48 | 100 79 25 54 15 Level 1 51 | . 20 74 45 84 Level 2 . | . . . . . Level 3 . | . . . . . Level 4 . | . . . . . Level 5 . | . . . . . High Security . | . . . . . Max Security . | . . . . . Squads Dispatched 3 | . 1 . 2 . Investigation 2 | . 1 . 1 . Extermination . | . . . . . Reinforcement 1 | . . . 1 . Assault . | . . . . . Garrison . | . . . . . Intercept . | . . . . . Searches Triggered . | . . . . . Construction Impeded . | . . . . . Haulers Reinforced . | . . . . . Active Scanning Responses . | . . . . . Cargo Convoy Interrupts . | . . . . . Stealth | -11 -10 -10 -9 -8 --------- Run | Yrd Mat Min Mat Mat Distress Signals 2 | . . . 1 1 Communications Jammed . | . . . . . Distress Signals . | . . . . . Times Spotted 54 | . 9 8 24 13 Peak Tracking Total 6 | . 2 4 5 6 Tactical Retreats 4 | . . 2 2 . Traps | -11 -10 -10 -9 -8 ------- Run | Yrd Mat Min Mat Mat Traps Triggered 2 | . 1 . 1 . Indirectly . | . . . . . Trap Hack Attempts . | . . . . . Triggered . | . . . . . Disarmed . | . . . . . Reprogrammed . | . . . . . Reused . | . . . . . Traps Extracted . | . . . . . Installed . | . . . . . Triggered . | . . . . . Machines | -11 -10 -10 -9 -8 ---------- Run | Yrd Mat Min Mat Mat Machines Disabled 4 | . 3 1 . . Max in Single Turn 2 | . 2 1 . . Machines Repaired . | . . . . . Machines Dismantled . | . . . . . Machines Sabotaged . | . . . . . Overloaded Fab Kills . | . . . . . Hacking | -11 -10 -10 -9 -8 --------- Run | Yrd Mat Min Mat Mat Machines Accessed 3 | . . . 3 . Terminals 2 | . . . 2 . Fabricators . | . . . . . Repair Stations . | . . . . . Recycling Units 1 | . . . 1 . Scanalyzers . | . . . . . Garrison Access . | . . . . . Total Hacks 10 | . . . 10 . Successful 2 | . . . 2 . Failed 8 | . . . 8 . Catastrophic . | . . . . . Database Lockouts . | . . . . . Manual 2 | . . . 2 . Terminals 5 | . . . 5 . Fabricators . | . . . . . Repair Stations . | . . . . . Recycling Units 5 | . . . 5 . Scanalyzers . | . . . . . Garrison Access . | . . . . . Terminal Hacks 1 | . . . 1 . Transport Status 1 | . . . 1 . Fabricator Hacks . | . . . . . Repair Station Hacks . | . . . . . Recycling Unit Hacks 1 | . . . 1 . Retrieve Components 1 | . . . 1 . Scanalyzer . | . . . . . Garrison Access Hacks . | . . . . . Unauthorized Hacks . | . . . . . Terminals . | . . . . . Fabricators . | . . . . . Repair Stations . | . . . . . Recycling Units . | . . . . . Scanalyzers . | . . . . . Garrison Access . | . . . . . Data Cores Recovered . | . . . . . Used . | . . . . . Hacking Detections 3 | . . . 3 . Full Trace Events 1 | . . . 1 . Feedback Events . | . . . . . Feedback Blocked . | . . . . . Robot Schematics Acquired . | . . . . . Robots Built . | . . . . . Authchips . | . . . . . Time . | . . . . . Total Robot Build Rating . | . . . . . Part Schematics Acquired . | . . . . . Parts Built . | . . . . . Authchips . | . . . . . Time . | . . . . . Total Part Build Rating . | . . . . . Parts Repaired . | . . . . . Time . | . . . . . Parts Recycled . | . . . . . Recycled Matter . | . . . . . Retrieved Matter . | . . . . . Retrieved Components 3 | . . . 3 . Parts Scanalyzed . | . . . . . Part Schematics Acquired . | . . . . . Parts Damaged . | . . . . . Bothacking | -11 -10 -10 -9 -8 ------------ Run | Yrd Mat Min Mat Mat Used RIF Installer . | . . . . . Robots Hacked 1 | . . . 1 . Non-combat 1 | . . . 1 . Combat . | . . . . . Robot Hacks Applied 3 | . . . 3 . parse_system 1 | . . . 1 . no_distress 1 | . . . 1 . check_alert 1 | . . . 1 . Relay Couplers Released . | . . . . . Fabnet Peak Effective % . | . . . . . Robots Rewired . | . . . . . Allies Hacked . | . . . . . Hacks Repelled . | . . . . . Allies | -11 -10 -10 -9 -8 -------- Run | Yrd Mat Min Mat Mat Total Allies . | . . . . . Largest Group . | . . . . . Highest-Rated Group . | . . . . . Highest-Rated Ally . | . . . . . Total Orders . | . . . . . Ally Attacks . | . . . . . Total Damage . | . . . . . Kills . | . . . . . Allies Corrupted . | . . . . . Allies Melted . | . . . . . Intel | -11 -10 -10 -9 -8 ------- Run | Yrd Mat Min Mat Mat Robot Analysis Total . | . . . . . Derelict Logs Recovered 1 | . . 1 . . Drone Launches . | . . . . . Drone Recoveries . | . . . . . Exploration | -11 -10 -10 -9 -8 ------------- Run | Yrd Mat Min Mat Mat Turns Passed 1834 | 78 330 411 732 283 Spaces Moved 1201 | 73 234 306 426 162 Core 56 | 45 . 1 9 1 Treads 286 | . . 171 115 . Legs 605 | 28 234 39 143 161 Wheels 37 | . . . 37 . Hover . | . . . . . Flight 217 | . . 95 122 . Fastest Speed 32 | 50 120 40 32 130 Average Speed 119 | 97 120 119 117 132 Slowest Speed 500 | 150 120 200 300 500 Overloaded Moves . | . . . . . Propulsion Burnouts . | . . . . . Robots Hopped 10 | . . 6 4 . Cave-ins Triggered . | . . . . . Exploration Rate (%) 31 | 5 39 53 38 24 Regions Visited 4 Branch Regions 1 Pre-discovered Areas 1 | . . 1 . . Known Exits Taken . | . . . . . Unknown Exits Taken 4 | 1 1 1 1 . Scrap Searched . | . . . . . Spaces Dug . | . . . . . Terrain Destroyed 157 | . 54 . 51 52 Melee . | . . . . . Projectile . | . . . . . AOE 157 | . 54 . 51 52 Terrain Rammed . | . . . . . Walls Destroyed . | . . . . . Machines Disabled . | . . . . . Actions | -11 -10 -10 -9 -8 --------- Run | Yrd Mat Min Mat Mat Total 1452 | 77 261 336 572 206 Wait 73 | . 1 4 43 25 Move 1178 | 72 233 294 417 162 Hop 9 | . . 5 4 . Pick Up 8 | . 4 1 3 . Fast Attach 42 | 5 4 9 20 4 Attach 14 | . 2 1 10 1 Detach 13 | . 3 4 6 . Swap 1 | . . . 1 . Drop 24 | . 1 11 12 . Fire 68 | . 12 7 45 4 Melee 4 | . . . 4 . Ram 8 | . . . 5 3 Kick 9 | . 1 . 1 7 Crush 1 | . . . 1 . Escape Stasis . | . . . . . Rewire . | . . . . . Trap . | . . . . . Miscellaneous . | . . . . . Route ------- -11/Scrapyard -10/Materials -10/Mines -9/Materials -8/Materials History --------- Turn | Location | Event 26 | -11/Scrapyard | Discovered new exit (range 16) 79 | -11/Scrapyard | Entered Materials 302 | -10/Materials | Build established: Mutant 353 | -10/Materials | Discovered new exit (range 11) 409 | -10/Materials | Entered Mines 425 | -10/Mines | Met a Derelict bent on vengeance 515 | -10/Mines | Joined a pair of Derelicts in attacking an 0b10 outpost 774 | -10/Mines | Discovered new exit (range 9) 806 | -10/Mines | Learned location of Zion (-7) 820 | -10/Mines | Entered Materials 820 | -9/Materials | Evolved 2 slots: Weapon x2 1321 | -9/Materials | Core integrity fell below 50% 1371 | -9/Materials | Lost 4 parts (2n2w) 1442 | -9/Materials | Core integrity fell below 20% 1540 | -9/Materials | Discovered new exit (range 9) 1552 | -9/Materials | Entered another Materials area 1552 | -8/Materials | Evolved 2 slots: Power x2 1826 | -8/Materials | Core integrity fell below 50% 1830 | -8/Materials | Core integrity fell below 20% 1835 | -8/Materials | Destroyed by H-55 Commando with Gauss Rifle Last Messages --------------- 01809_ Kicked G-47 Trooper. 01811_ Kicked G-47 Trooper out of the way. 01814_ Penetrated by Slug. 01814_ Titanium Leg destroyed. 01815_ Critical hit (Burn: +37). 01817_ Scanalyzer disabled. 01818_ Penetrated by Slug. 01819_ Mni. Grenade Launcher destroyed. 01820_ Spread Laser destroyed. 01820_ Slammed into G-47 Trooper. 01822_ Spread Laser destroyed. 01824_ Slammed into G-47 Trooper. 01825_ Mni. Grenade Launcher destroyed. 01825_ Imp. Deuterium Engine destroyed. 01826_ Penetrated by Slug. 01829_ Kicked G-47 Trooper. 01832_ Penetrated by Slug. 01833_ Aluminum Leg destroyed. 01833_ Slammed into G-47 Trooper. 01835_ Imp. Deuterium Engine destroyed. Map ----- +----------------------------------------------------+ | #???????????# #??# ?????????????? | | ############# """ #??# ?????????????? | | ## + """"" #??? [ ?????????????? | | ## ##+##### """"" #???# #????????#####? | | + # ## """"" #???# ##+##+#??# !!#? | | # ! ## """ #???# #??# !!#? | | [ ## #???# #??# !!#? | | # !## #???# #??# !!#? | | ### ###########+###+##### #### **#? | | ## #? | | # # ####+##### #####? | | #### # #?# #????? | | #??# ########### #### + #?# ##???? | | #??# #?????????# ???#### """ #?# # ! #???? | | #??# #?????????# ??????# """ ###/# #???? | | #??# #?????????# ??????# """ # # #???? | | ? #?????????# ??????# # ## ##???? | | ! +?????????# ????########## ## #????? | | % #?????????# ????# ## ## #????? | | ### #?????????# ????# " ## ## #????? | | ?# ??????????#?????# """ ## ## #????? | | ## ??????????#?????# """ ## ## ####?? | | "" #? ??????????# ###?# """ ###+## #?? | | "" #??????????????# # g # #?? | | ?? #??????????????# #lgh + #?? | | ?? #??????????????# g@ g # #?? | | ???????????????????+ # "" # #?? | | ???????????????????# # "" # #?? | | ???????????????????# ?# "" # #?? | | ???????????????????# ?######### #?? | | ???????????????????# ?? """" #?? | | ???????????????????# """" #?? | | ???????????????????# ?? """" =#?? | | ???????????????????# ??? #?? | | ???????????????????# ???? #?? | | ???????????????????##????######## T?? | | ????????????????????????????????# ##? | | ????????????????????????????????# "?? | | ????????????????????????????????# != "?? | | ????????????????????????????????# == "#? | | ????????????????????????????????+ ] = T#? | | ????????????????????????????????# "#? | | ????????????????????????????????# ] "?? | | ????????????????????????????????# "?? | | ????????????????????????????????## #?? | | ?????????????????????????????????# """" #?? | | ?????????????????????????????????? ?""" ??? | | ???????????????????????????????????????" ??? | | ??????????????????????????????????????? ??? | | ????????????????????????????????????????? ??? | +----------------------------------------------------+ Best States ------------- Heat Dissipation 39 Energy Generation 27 Energy Capacity 480 Matter Stores 300 Matter Capacity 300 Sight Range 18 Robot Scan Range 14 Terrain Scan Density 10 Utility Shielding 33 Evasion (%) 63 Targeting Accuracy 5 Recoil Reduction 2 Item Schematics ----------------- None Robot Schematics ------------------ None Fabricated ------------ Nothing Alien Tech Used ----------------- None Achievements -------------- Oops Challenges ------------ None Game ------ Seed CoilSchematicInsulator Manual? 0 Play Time 00:32:19 Cumulative 7.6 hours Start 2024.08.23 @ 20:17:16 End 2024.08.23 @ 20:46:01 Sessions 1 Manual Loads 0 Difficulty Rogue Special Mode None Game No. 21 Rogue 20 Adventurer 1 Explorer 0 Win Type - Total 0 Types 0/0/0/0/0/0/0/0/0 Lore% 2 Gallery% 11 Achievement% 11 Wizard Run 0 Options --------- Layout 2 ASCII 1 Keyboard 1 Movement Numpad Keybinds 0 Fullscreen 1 Font 24/Smallcaps Map View 50x44 Zoom Use 0% Tactical HUD 1 Map Filters NONE Filters NONE Steam 1 RUN: 4d576b14-4acc-4cf8-8cb7-2466e602d1cb